[Event "*** MasterClass Titled Tuesday Blitz"]
[Site "Chess.com"]
[Date "2017.10.03"]
[Round "1"]
[White "grzechu96"]
[Black "shepi13"]
[Result "1-0"]
[WhiteElo "2432"]
[BlackElo "1999"]
[TimeControl "180+2"]
[EndTime "13:02:39 PDT"]
[Termination "grzechu96 won by resignation"]

1. e4 {[%clk 0:03:01.9]} 1... c5 {[%clk 0:02:59.6]} 2. Nf3 {[%clk 0:03:02.8]}
2... d6 {[%clk 0:03:00.6]} 3. d4 {[%clk 0:03:04]} 3... cxd4 {[%clk 0:03:01.6]}
4. Nxd4 {[%clk 0:03:05.9]} 4... Nf6 {[%clk 0:03:02.5]} 5. Nc3 {[%clk 0:03:07.4]}
5... a6 {[%clk 0:03:03.6]} 6. Be3 {[%clk 0:03:08.4]} 6... Ng4 {[%clk 0:03:03.5]}
7. Bc1 {[%clk 0:03:09.3]} 7... Nf6 {[%clk 0:03:04.4]} 8. f3 {[%clk 0:03:10.8]}
8... e6 {[%clk 0:03:01.6]} 9. Be3 {[%clk 0:03:10.9]} 9... b5 {[%clk 0:03:02.5]}
10. Qd2 {[%clk 0:03:11.9]} 10... b4 {[%clk 0:03:02.5]} 11. Na4 {[%clk
0:03:03.1]} 11... Nbd7 {[%clk 0:03:03]} 12. O-O-O {[%clk 0:02:38.1]} 12... Qa5
{[%clk 0:02:52]} 13. b3 {[%clk 0:02:39]} 13... d5 {[%clk 0:02:45.5]} 14. e5
{[%clk 0:02:17.7]} 14... Nxe5 {[%clk 0:02:29.9]} 15. Bf4 {[%clk 0:02:19]} 15...
Ned7 {[%clk 0:02:24.9]} 16. Nc6 {[%clk 0:02:20]} 1-0

[Event "*** MasterClass Titled Tuesday Blitz"]
[Site "Chess.com"]
[Date "2017.10.03"]
[Round "1"]
[White "MisaPap"]
[Black "BillCoe"]
[Result "1-0"]
[WhiteElo "2439"]
[BlackElo "1964"]
[TimeControl "180+2"]
[EndTime "13:03:59 PDT"]
[Termination "MisaPap won by resignation"]

1. e4 {[%clk 0:03:01.9]} 1... c5 {[%clk 0:02:40.7]} 2. Nf3 {[%clk 0:03:02]} 2...
e6 {[%clk 0:02:41.5]} 3. c3 {[%clk 0:03:02.5]} 3... Nc6 {[%clk 0:02:35.7]} 4. d4
{[%clk 0:03:02.9]} 4... cxd4 {[%clk 0:02:36.6]} 5. cxd4 {[%clk 0:03:03.7]} 5...
d6 {[%clk 0:02:38]} 6. Nc3 {[%clk 0:03:03.6]} 6... Be7 {[%clk 0:02:38.8]} 7. Bd3
{[%clk 0:03:04.5]} 7... Nf6 {[%clk 0:02:36.8]} 8. O-O {[%clk 0:03:05]} 8... O-O
{[%clk 0:02:36.4]} 9. a3 {[%clk 0:03:01.9]} 9... a6 {[%clk 0:02:35.5]} 10. b4
{[%clk 0:03:01.9]} 10... b5 {[%clk 0:02:35]} 11. Bb2 {[%clk 0:03:03.1]} 11...
Bb7 {[%clk 0:02:34.4]} 12. Rc1 {[%clk 0:03:03.6]} 12... Rc8 {[%clk 0:02:33.9]}
13. Re1 {[%clk 0:03:04.3]} 13... Qb6 {[%clk 0:02:32.6]} 14. Bb1 {[%clk
0:03:03.3]} 14... e5 {[%clk 0:02:27]} 15. Nd5 {[%clk 0:02:50]} 15... Nxd5 {[%clk
0:02:23.6]} 16. exd5 {[%clk 0:02:50.6]} 16... Nd8 {[%clk 0:02:05.7]} 17. Rxc8
{[%clk 0:02:50.5]} 17... Bxc8 {[%clk 0:01:59.4]} 18. dxe5 {[%clk 0:02:52]} 18...
dxe5 {[%clk 0:01:49.9]} 19. Nxe5 {[%clk 0:02:32.1]} 19... Bd6 {[%clk 0:01:37.3]}
20. Qc2 {[%clk 0:02:27.3]} 20... g6 {[%clk 0:01:30.4]} 21. Qxc8 {[%clk
0:02:26.8]} 1-0

[Event "*** MasterClass Titled Tuesday Blitz"]
[Site "Chess.com"]
[Date "2017.10.03"]
[Round "1"]
[White "avto24"]
[Black "VojtechPlat"]
[Result "0-1"]
[WhiteElo "2393"]
[BlackElo "2686"]
[TimeControl "180+2"]
[EndTime "13:04:04 PDT"]
[Termination "VojtechPlat won by checkmate"]

1. e4 {[%clk 0:03:01.9]} 1... c5 {[%clk 0:03:00.4]} 2. c3 {[%clk 0:03:02.4]}
2... Nf6 {[%clk 0:02:59.6]} 3. e5 {[%clk 0:03:03.4]} 3... Nd5 {[%clk 0:03:01.2]}
4. d4 {[%clk 0:03:04.6]} 4... cxd4 {[%clk 0:03:02.3]} 5. Nf3 {[%clk 0:03:05.8]}
5... Nc6 {[%clk 0:03:01.4]} 6. cxd4 {[%clk 0:03:06.7]} 6... d6 {[%clk
0:03:01.9]} 7. Bc4 {[%clk 0:03:08.1]} 7... Nb6 {[%clk 0:03:02.6]} 8. Bb5 {[%clk
0:03:09.3]} 8... e6 {[%clk 0:03:03.4]} 9. O-O {[%clk 0:03:09.9]} 9... Bd7 {[%clk
0:03:04.2]} 10. exd6 {[%clk 0:03:09.3]} 10... Bxd6 {[%clk 0:03:04.6]} 11. Nc3
{[%clk 0:03:10]} 11... O-O {[%clk 0:03:04.7]} 12. a3 {[%clk 0:03:10.9]} 12...
Rc8 {[%clk 0:03:04.5]} 13. Bd3 {[%clk 0:03:11.5]} 13... f5 {[%clk 0:02:54.7]}
14. Re1 {[%clk 0:03:11]} 14... Qf6 {[%clk 0:02:52.6]} 15. Bg5 {[%clk 0:02:25.5]}
15... Qg6 {[%clk 0:02:53]} 16. Qd2 {[%clk 0:02:24]} 16... Na5 {[%clk 0:02:41.8]}
17. Rad1 {[%clk 0:02:21.2]} 17... Nac4 {[%clk 0:02:42]} 18. Qe2 {[%clk
0:02:22.1]} 18... Nxa3 {[%clk 0:02:32.4]} 19. h4 {[%clk 0:01:47.5]} 19... h6
{[%clk 0:02:26.3]} 20. Bc1 {[%clk 0:01:41.3]} 20... Nac4 {[%clk 0:02:27.1]} 21.
b3 {[%clk 0:01:39.2]} 21... Na5 {[%clk 0:02:25.8]} 22. Qb2 {[%clk 0:01:32.2]}
22... Bc6 {[%clk 0:02:23]} 23. Ne5 {[%clk 0:01:29.6]} 23... Qxg2# {[%clk
0:02:21.2]} 0-1

[Event "*** MasterClass Titled Tuesday Blitz"]
[Site "Chess.com"]
[Date "2017.10.03"]
[Round "1"]
[White "HanSchut"]
[Black "Bengalas"]
[Result "0-1"]
[WhiteElo "2209"]
[BlackElo "2513"]
[TimeControl "180+2"]
[EndTime "13:04:05 PDT"]
[Termination "Bengalas won by resignation"]

1. e4 {[%clk 0:03:01.9]} 1... c5 {[%clk 0:02:58.6]} 2. Nf3 {[%clk 0:03:02.4]}
2... d6 {[%clk 0:02:58.9]} 3. d4 {[%clk 0:02:37.3]} 3... cxd4 {[%clk 0:02:57.6]}
4. Nxd4 {[%clk 0:02:38.3]} 4... Nf6 {[%clk 0:02:58.7]} 5. f3 {[%clk 0:02:39.6]}
5... e5 {[%clk 0:02:53.5]} 6. Bb5+ {[%clk 0:02:39.3]} 6... Nbd7 {[%clk
0:02:52.9]} 7. Nf5 {[%clk 0:02:40.2]} 7... d5 {[%clk 0:02:53.9]} 8. exd5 {[%clk
0:02:41.6]} 8... a6 {[%clk 0:02:55]} 9. Bxd7+ {[%clk 0:02:42.6]} 9... Qxd7
{[%clk 0:02:56]} 10. Ne3 {[%clk 0:02:44.3]} 10... b5 {[%clk 0:02:55.3]} 11. a4
{[%clk 0:02:45.3]} 11... Bb7 {[%clk 0:02:52.6]} 12. axb5 {[%clk 0:02:47.2]}
12... axb5 {[%clk 0:02:53.5]} 13. Rxa8+ {[%clk 0:02:48.2]} 13... Bxa8 {[%clk
0:02:54.4]} 14. Nc3 {[%clk 0:02:49.5]} 14... Bc5 {[%clk 0:02:49.7]} 15. Qe2
{[%clk 0:02:49.8]} 15... b4 {[%clk 0:02:47.9]} 16. Ne4 {[%clk 0:02:50.3]} 16...
Bxe3 {[%clk 0:02:35]} 17. Nxf6+ {[%clk 0:02:47.9]} 17... gxf6 {[%clk 0:02:36]}
18. Bxe3 {[%clk 0:02:44.5]} 18... Bxd5 {[%clk 0:02:31.2]} 19. O-O {[%clk
0:02:43.4]} 19... Qc6 {[%clk 0:02:31.9]} 20. Rd1 {[%clk 0:02:23.9]} 20... Ke7
{[%clk 0:02:23.8]} 21. Qd2 {[%clk 0:02:19.3]} 21... Ke6 {[%clk 0:02:22.1]} 22.
Qxb4 {[%clk 0:02:16.7]} 22... Rg8 {[%clk 0:02:22.9]} 23. Kf2 {[%clk 0:02:05.2]}
23... Rxg2+ {[%clk 0:02:21.4]} 24. Kxg2 {[%clk 0:02:05.3]} 24... Bxf3+ {[%clk
0:02:21.5]} 25. Kf2 {[%clk 0:01:54.1]} 25... Bxd1 {[%clk 0:02:22.3]} 26. c3
{[%clk 0:01:46.6]} 26... Qf3+ {[%clk 0:02:20.9]} 0-1

[Event "*** MasterClass Titled Tuesday Blitz"]
[Site "Chess.com"]
[Date "2017.10.03"]
[Round "1"]
[White "MartinMatthiesen"]
[Black "ChessQueen"]
[Result "1-0"]
[WhiteElo "2333"]
[BlackElo "2590"]
[TimeControl "180+2"]
[EndTime "13:04:31 PDT"]
[Termination "MartinMatthiesen won by resignation"]

1. d4 {[%clk 0:03:01.9]} 1... Nf6 {[%clk 0:03:00]} 2. c4 {[%clk 0:03:00.5]} 2...
e6 {[%clk 0:03:00.9]} 3. Nf3 {[%clk 0:02:57.2]} 3... b6 {[%clk 0:03:01.6]} 4. g3
{[%clk 0:02:55.8]} 4... Bb7 {[%clk 0:03:02.6]} 5. Bg2 {[%clk 0:02:56.3]} 5...
Be7 {[%clk 0:03:04.2]} 6. O-O {[%clk 0:02:56.8]} 6... O-O {[%clk 0:03:05.2]} 7.
Nc3 {[%clk 0:02:51.3]} 7... Ne4 {[%clk 0:03:05.8]} 8. Bd2 {[%clk 0:02:51.8]}
8... d6 {[%clk 0:03:02.5]} 9. Be1 {[%clk 0:02:30.6]} 9... Nd7 {[%clk 0:02:59.2]}
10. Qc2 {[%clk 0:02:20.9]} 10... Nxc3 {[%clk 0:02:34.7]} 11. Bxc3 {[%clk
0:02:20.9]} 11... f5 {[%clk 0:02:35.1]} 12. Ng5 {[%clk 0:02:05.4]} 12... Bxg5
{[%clk 0:02:22.7]} 13. Bxb7 {[%clk 0:02:04.6]} 13... Rb8 {[%clk 0:02:23.9]} 14.
Bg2 {[%clk 0:02:04.1]} 14... Qf6 {[%clk 0:02:14.5]} 15. f4 {[%clk 0:01:57.9]}
15... Bh6 {[%clk 0:02:14.6]} 16. e4 {[%clk 0:01:57.7]} 16... Qg6 {[%clk
0:01:45.4]} 17. d5 {[%clk 0:01:48.2]} 17... exd5 {[%clk 0:01:43.8]} 18. exf5
{[%clk 0:01:48.1]} 18... Qxf5 {[%clk 0:01:29.7]} 19. Bxd5+ {[%clk 0:01:47.6]}
19... Kh8 {[%clk 0:01:27.9]} 20. Qxf5 {[%clk 0:01:41.3]} 20... Rxf5 {[%clk
0:01:28.7]} 21. Be6 {[%clk 0:01:42.6]} 1-0

[Event "*** MasterClass Titled Tuesday Blitz"]
[Site "Chess.com"]
[Date "2017.10.03"]
[Round "1"]
[White "Too_Stupid_To_Play"]
[Black "IM_Michal_Luch"]
[Result "0-1"]
[WhiteElo "2154"]
[BlackElo "2478"]
[TimeControl "180+2"]
[EndTime "13:04:41 PDT"]
[Termination "IM_Michal_Luch won by resignation"]

1. Nf3 {[%clk 0:02:02.2]} 1... Nf6 {[%clk 0:03:01.9]} 2. c4 {[%clk 0:02:03.5]}
2... e6 {[%clk 0:03:03.2]} 3. g3 {[%clk 0:01:56.7]} 3... d5 {[%clk 0:03:05.1]}
4. Bg2 {[%clk 0:01:57.3]} 4... dxc4 {[%clk 0:03:06.7]} 5. O-O {[%clk 0:01:59.1]}
5... Nbd7 {[%clk 0:03:07.1]} 6. Na3 {[%clk 0:01:59.4]} 6... Bxa3 {[%clk
0:03:06.3]} 7. bxa3 {[%clk 0:02:00.2]} 7... O-O {[%clk 0:03:05.4]} 8. Qc2 {[%clk
0:02:01.5]} 8... Nb6 {[%clk 0:02:59.9]} 9. a4 {[%clk 0:02:02.3]} 9... a5 {[%clk
0:02:59.8]} 10. Ne5 {[%clk 0:02:00.6]} 10... Bd7 {[%clk 0:02:55.6]} 11. Bxb7
{[%clk 0:01:47.1]} 11... Bxa4 {[%clk 0:02:56.4]} 12. Qb1 {[%clk 0:01:15.3]}
12... Rb8 {[%clk 0:02:55]} 13. Bc6 {[%clk 0:01:06.9]} 13... Nbd7 {[%clk
0:02:47.8]} 14. Qxb8 {[%clk 0:00:57.5]} 14... Qxb8 {[%clk 0:02:46.2]} 15. Nxd7
{[%clk 0:00:55.6]} 15... Nxd7 {[%clk 0:02:47.2]} 16. Bxa4 {[%clk 0:00:55.9]}
16... Nc5 {[%clk 0:02:46.3]} 17. Bc2 {[%clk 0:00:55.9]} 17... Rd8 {[%clk
0:02:47]} 18. Rb1 {[%clk 0:00:54.4]} 18... Qa8 {[%clk 0:02:48.2]} 19. Ba3 {[%clk
0:00:52.3]} 19... Nd7 {[%clk 0:02:46]} 20. Rb5 {[%clk 0:00:35.5]} 20... Nb6
{[%clk 0:02:46.9]} 21. Rfb1 {[%clk 0:00:35]} 21... Rxd2 {[%clk 0:02:46.4]} 22.
Bd1 {[%clk 0:00:26.6]} 22... Qd8 {[%clk 0:02:45.7]} 0-1

[Event "*** MasterClass Titled Tuesday Blitz"]
[Site "Chess.com"]
[Date "2017.10.03"]
[Round "1"]
[White "pedromartinez91"]
[Black "yosephtaher"]
[Result "0-1"]
[WhiteElo "2279"]
[BlackElo "2555"]
[TimeControl "180+2"]
[EndTime "13:04:46 PDT"]
[Termination "yosephtaher won on time"]

1. e4 {[%clk 0:02:44.7]} 1... c5 {[%clk 0:02:59.2]} 2. Nf3 {[%clk 0:02:45.8]}
2... e6 {[%clk 0:02:59.6]} 3. c3 {[%clk 0:02:44.5]} 3... d5 {[%clk 0:02:59.2]}
4. exd5 {[%clk 0:02:43.4]} 4... Qxd5 {[%clk 0:02:59.3]} 5. d4 {[%clk 0:02:43.5]}
5... Nf6 {[%clk 0:03:00.2]} 6. Be2 {[%clk 0:02:43.4]} 6... Be7 {[%clk
0:02:59.7]} 7. O-O {[%clk 0:02:43.5]} 7... O-O {[%clk 0:03:00]} 8. dxc5 {[%clk
0:02:40.8]} 8... Qxc5 {[%clk 0:03:00.1]} 9. Be3 {[%clk 0:02:39.1]} 9... Qc7
{[%clk 0:03:00.4]} 10. Na3 {[%clk 0:02:22.1]} 10... Bxa3 {[%clk 0:02:58.9]} 11.
bxa3 {[%clk 0:02:19.3]} 11... Nbd7 {[%clk 0:02:24.9]} 12. Qa4 {[%clk 0:02:05.8]}
12... b6 {[%clk 0:02:18.1]} 0-1

[Event "*** MasterClass Titled Tuesday Blitz"]
[Site "Chess.com"]
[Date "2017.10.03"]
[Round "1"]
[White "ehrenfeld"]
[Black "krzyzan94"]
[Result "0-1"]
[WhiteElo "2315"]
[BlackElo "2598"]
[TimeControl "180+2"]
[EndTime "13:04:58 PDT"]
[Termination "krzyzan94 won by resignation"]

1. e4 {[%clk 0:02:55.8]} 1... c5 {[%clk 0:03:00.1]} 2. Nf3 {[%clk 0:02:56.2]}
2... e6 {[%clk 0:02:58.2]} 3. d3 {[%clk 0:02:56.8]} 3... Nc6 {[%clk 0:02:57.9]}
4. g3 {[%clk 0:02:57.8]} 4... d5 {[%clk 0:02:56.8]} 5. Qe2 {[%clk 0:02:58.4]}
5... Nf6 {[%clk 0:02:56.8]} 6. Bg2 {[%clk 0:02:58.7]} 6... Be7 {[%clk
0:02:55.7]} 7. e5 {[%clk 0:02:59.5]} 7... Nd7 {[%clk 0:02:56]} 8. c4 {[%clk
0:03:00.5]} 8... d4 {[%clk 0:02:56.1]} 9. O-O {[%clk 0:03:00.6]} 9... g5 {[%clk
0:02:55.2]} 10. h3 {[%clk 0:02:55.3]} 10... h5 {[%clk 0:02:55.7]} 11. Re1 {[%clk
0:02:51]} 11... g4 {[%clk 0:02:50.5]} 12. hxg4 {[%clk 0:02:51.2]} 12... hxg4
{[%clk 0:02:52.4]} 13. Nh2 {[%clk 0:02:52]} 13... Ncxe5 {[%clk 0:02:52.7]} 14.
Nxg4 {[%clk 0:02:53.1]} 14... Nxg4 {[%clk 0:02:52.8]} 15. Qxg4 {[%clk
0:02:53.6]} 15... Nf6 {[%clk 0:02:53.1]} 16. Qe2 {[%clk 0:02:52.8]} 16... Qb6
{[%clk 0:02:42.4]} 17. Nd2 {[%clk 0:02:42.2]} 17... Bd7 {[%clk 0:02:42.7]} 18.
Nf3 {[%clk 0:02:41.3]} 18... Bc6 {[%clk 0:02:43.1]} 19. Bf4 {[%clk 0:02:40.5]}
19... O-O-O {[%clk 0:02:40.2]} 20. Rab1 {[%clk 0:02:36]} 20... Rh5 {[%clk
0:02:23.1]} 21. a3 {[%clk 0:02:33.8]} 21... a5 {[%clk 0:02:23.1]} 22. b4 {[%clk
0:01:59.3]} 22... cxb4 {[%clk 0:02:20.4]} 23. axb4 {[%clk 0:01:59.7]} 23... Bxb4
{[%clk 0:02:21.3]} 24. Bd2 {[%clk 0:01:59.1]} 24... Rdh8 {[%clk 0:02:17.8]} 25.
Bxb4 {[%clk 0:01:59]} 25... axb4 {[%clk 0:02:18]} 26. Rb2 {[%clk 0:01:54.8]}
26... Qc5 {[%clk 0:01:52.4]} 27. Reb1 {[%clk 0:01:51.9]} 27... Qf5 {[%clk
0:01:45.7]} 28. Rxb4 {[%clk 0:01:43.9]} 28... Rh1+ {[%clk 0:01:43]} 29. Bxh1
{[%clk 0:01:41.1]} 29... Rxh1+ {[%clk 0:01:44.9]} 0-1

[Event "*** MasterClass Titled Tuesday Blitz"]
[Site "Chess.com"]
[Date "2017.10.03"]
[Round "1"]
[White "TrickyTrapChess"]
[Black "ZapataCharlesS"]
[Result "0-1"]
[WhiteElo "2281"]
[BlackElo "2563"]
[TimeControl "180+2"]
[EndTime "13:04:59 PDT"]
[Termination "ZapataCharlesS won by resignation"]

1. c4 {[%clk 0:02:57.6]} 1... e5 {[%clk 0:03:00.5]} 2. Nc3 {[%clk 0:02:50.3]}
2... f5 {[%clk 0:03:00.6]} 3. g3 {[%clk 0:02:49.6]} 3... Nf6 {[%clk 0:03:01.6]}
4. Bg2 {[%clk 0:02:47]} 4... Be7 {[%clk 0:03:01.8]} 5. e3 {[%clk 0:02:46.5]}
5... O-O {[%clk 0:03:01.8]} 6. Nge2 {[%clk 0:02:47.4]} 6... d6 {[%clk
0:02:58.2]} 7. d4 {[%clk 0:02:47.7]} 7... Nbd7 {[%clk 0:02:45.6]} 8. O-O {[%clk
0:02:48.2]} 8... Qe8 {[%clk 0:02:45.4]} 9. b3 {[%clk 0:02:47.7]} 9... c6 {[%clk
0:02:43.6]} 10. Bb2 {[%clk 0:02:47.4]} 10... Qh5 {[%clk 0:02:40.7]} 11. h3
{[%clk 0:02:37.9]} 11... e4 {[%clk 0:02:29.9]} 12. Nf4 {[%clk 0:02:38]} 12...
Qf7 {[%clk 0:02:29.1]} 13. d5 {[%clk 0:02:37.5]} 13... Ne5 {[%clk 0:02:26.5]}
14. Nce2 {[%clk 0:02:28]} 14... g5 {[%clk 0:02:23.5]} 15. Ne6 {[%clk 0:02:24]}
15... Bxe6 {[%clk 0:02:24.8]} 16. dxe6 {[%clk 0:02:24.3]} 16... Qxe6 {[%clk
0:02:26.7]} 17. Nd4 {[%clk 0:02:25.2]} 17... Qd7 {[%clk 0:02:25.3]} 18. Qe2
{[%clk 0:02:19]} 18... g4 {[%clk 0:02:25.9]} 19. h4 {[%clk 0:02:19.5]} 19...
Nf3+ {[%clk 0:02:26.2]} 20. Kh1 {[%clk 0:02:12.8]} 20... Rad8 {[%clk 0:02:24.9]}
21. b4 {[%clk 0:02:11.6]} 21... d5 {[%clk 0:02:24.9]} 22. c5 {[%clk 0:02:11.5]}
22... Ne8 {[%clk 0:02:18]} 23. Qc2 {[%clk 0:02:09]} 23... Bf6 {[%clk 0:02:19]}
24. Rad1 {[%clk 0:02:02.6]} 24... Ng7 {[%clk 0:02:18.3]} 25. a4 {[%clk
0:02:02.3]} 25... Qe7 {[%clk 0:02:18.7]} 26. Bxf3 {[%clk 0:02:02.6]} 26... gxf3
{[%clk 0:02:19.1]} 27. Rg1 {[%clk 0:01:52.5]} 27... Bxh4 {[%clk 0:02:12.4]} 28.
Qc3 {[%clk 0:01:50.9]} 28... Bf6 {[%clk 0:02:10.7]} 29. Kh2 {[%clk 0:01:45.3]}
29... Qf7 {[%clk 0:02:10.3]} 30. Rh1 {[%clk 0:01:46.3]} 30... Ne6 {[%clk
0:02:04]} 31. Kg1 {[%clk 0:01:43.8]} 31... f4 {[%clk 0:02:03.3]} 32. gxf4 {[%clk
0:01:43.1]} 32... Qg7+ {[%clk 0:02:01.5]} 33. Kf1 {[%clk 0:01:44.4]} 33... Qg2+
{[%clk 0:01:58.7]} 34. Ke1 {[%clk 0:01:46]} 34... Bxd4 {[%clk 0:01:59.5]} 35.
Kd2 {[%clk 0:01:47.9]} 35... Bxc3+ {[%clk 0:02:00]} 0-1

[Event "*** MasterClass Titled Tuesday Blitz"]
[Site "Chess.com"]
[Date "2017.10.03"]
[Round "1"]
[White "Gordima"]
[Black "Masterbeaterr"]
[Result "1-0"]
[WhiteElo "2559"]
[BlackElo "2279"]
[TimeControl "180+2"]
[EndTime "13:05:29 PDT"]
[Termination "Gordima won by resignation"]

1. d4 {[%clk 0:03:00.7]} 1... d5 {[%clk 0:02:56.1]} 2. Nf3 {[%clk 0:02:59.7]}
2... Nf6 {[%clk 0:02:55.6]} 3. e3 {[%clk 0:03:01]} 3... Bg4 {[%clk 0:02:55.3]}
4. c4 {[%clk 0:03:01.6]} 4... c6 {[%clk 0:02:54.6]} 5. h3 {[%clk 0:02:59.9]}
5... Bxf3 {[%clk 0:02:55]} 6. Qxf3 {[%clk 0:03:00.6]} 6... e6 {[%clk 0:02:56.5]}
7. Nc3 {[%clk 0:02:54]} 7... Be7 {[%clk 0:02:57]} 8. a3 {[%clk 0:02:50.3]} 8...
O-O {[%clk 0:02:57.5]} 9. Bd2 {[%clk 0:02:51.6]} 9... Nbd7 {[%clk 0:02:57.4]}
10. cxd5 {[%clk 0:02:49.1]} 10... exd5 {[%clk 0:02:55.3]} 11. Bd3 {[%clk
0:02:46.3]} 11... Re8 {[%clk 0:02:54.9]} 12. g4 {[%clk 0:02:47.1]} 12... Nf8
{[%clk 0:02:54.4]} 13. g5 {[%clk 0:02:43.5]} 13... N6d7 {[%clk 0:02:54.1]} 14.
h4 {[%clk 0:02:34.3]} 14... Ne6 {[%clk 0:02:55.3]} 15. Ne2 {[%clk 0:02:04.1]}
15... Ndf8 {[%clk 0:02:48.5]} 16. Ng3 {[%clk 0:01:50.3]} 16... Nxd4 {[%clk
0:02:25.1]} 17. exd4 {[%clk 0:01:50.3]} 17... Bxa3+ {[%clk 0:02:26.1]} 18. Kf1
{[%clk 0:01:45.8]} 18... Bxb2 {[%clk 0:02:28]} 19. Rb1 {[%clk 0:01:44.9]} 19...
Bxd4 {[%clk 0:02:29.1]} 20. Rxb7 {[%clk 0:01:44.6]} 20... Re7 {[%clk 0:02:28.4]}
21. Rxe7 {[%clk 0:01:43.7]} 21... Qxe7 {[%clk 0:02:30.2]} 22. Nf5 {[%clk
0:01:45]} 22... Qc5 {[%clk 0:02:24.6]} 23. h5 {[%clk 0:01:34.5]} 23... Be5
{[%clk 0:02:21]} 24. g6 {[%clk 0:01:28.1]} 24... fxg6 {[%clk 0:02:16.4]} 25.
hxg6 {[%clk 0:01:29.3]} 25... Nxg6 {[%clk 0:02:07.4]} 26. Qh5 {[%clk 0:01:22.7]}
26... Nf8 {[%clk 0:01:57.1]} 27. Nh6+ {[%clk 0:01:23.6]} 27... gxh6 {[%clk
0:01:57.4]} 28. Qxe5 {[%clk 0:01:25.5]} 28... Ng6 {[%clk 0:01:48.8]} 29. Bxg6
{[%clk 0:01:20.1]} 29... hxg6 {[%clk 0:01:50.7]} 30. Qe6+ {[%clk 0:01:17.7]} 1-0

[Event "*** MasterClass Titled Tuesday Blitz"]
[Site "Chess.com"]
[Date "2017.10.03"]
[Round "1"]
[White "TamNguyen2"]
[Black "Margency"]
[Result "0-1"]
[WhiteElo "2241"]
[BlackElo "2523"]
[TimeControl "180+2"]
[EndTime "13:05:38 PDT"]
[Termination "Margency won by resignation"]

1. c4 {[%clk 0:03:01.7]} 1... Nf6 {[%clk 0:02:58.7]} 2. Nf3 {[%clk 0:03:02.3]}
2... g6 {[%clk 0:03:00.1]} 3. g3 {[%clk 0:03:02.6]} 3... Bg7 {[%clk 0:03:01.7]}
4. Bg2 {[%clk 0:03:04.1]} 4... d5 {[%clk 0:03:02.9]} 5. cxd5 {[%clk 0:03:02.8]}
5... Nxd5 {[%clk 0:03:04.8]} 6. O-O {[%clk 0:02:59.3]} 6... O-O {[%clk
0:03:05.1]} 7. Nc3 {[%clk 0:02:56]} 7... Nb6 {[%clk 0:03:05.7]} 8. d3 {[%clk
0:02:49.1]} 8... Nc6 {[%clk 0:03:06.2]} 9. Be3 {[%clk 0:02:45.4]} 9... e5 {[%clk
0:03:06.7]} 10. Rc1 {[%clk 0:02:44.6]} 10... Re8 {[%clk 0:03:07.1]} 11. Ne4
{[%clk 0:02:27.3]} 11... Nd4 {[%clk 0:03:07.1]} 12. Nc5 {[%clk 0:02:21.1]} 12...
c6 {[%clk 0:03:04.8]} 13. Re1 {[%clk 0:01:57.8]} 13... Nd5 {[%clk 0:03:04.5]}
14. Bd2 {[%clk 0:01:56.7]} 14... b6 {[%clk 0:03:02.2]} 15. Ne4 {[%clk
0:01:48.8]} 15... c5 {[%clk 0:03:02.8]} 16. Nc3 {[%clk 0:01:45.2]} 16... Bb7
{[%clk 0:02:58.5]} 17. Ng5 {[%clk 0:01:35.5]} 17... h6 {[%clk 0:02:52.3]} 18.
Nge4 {[%clk 0:01:33.1]} 18... f5 {[%clk 0:02:47.8]} 19. Nxd5 {[%clk 0:01:33.9]}
19... Bxd5 {[%clk 0:02:48.5]} 20. Nc3 {[%clk 0:01:33.3]} 20... Bxg2 {[%clk
0:02:47.4]} 21. Kxg2 {[%clk 0:01:35.2]} 21... Qd7 {[%clk 0:02:43.7]} 22. Be3
{[%clk 0:01:35.2]} 22... Rad8 {[%clk 0:02:43.5]} 23. Qd2 {[%clk 0:01:36]} 23...
Kh7 {[%clk 0:02:36.6]} 24. Kg1 {[%clk 0:01:36]} 24... Ne6 {[%clk 0:02:25.5]} 25.
Qd1 {[%clk 0:01:34.5]} 25... Qb7 {[%clk 0:02:23.9]} 26. Qa4 {[%clk 0:01:33.8]}
26... Rf8 {[%clk 0:02:08]} 27. Qh4 {[%clk 0:01:29.4]} 27... f4 {[%clk
0:02:04.1]} 28. Bd2 {[%clk 0:01:29.8]} 28... Bf6 {[%clk 0:01:53]} 29. Qh3 {[%clk
0:01:28.8]} 29... Ng5 {[%clk 0:01:53.6]} 30. Qg2 {[%clk 0:01:29.7]} 30... f3
{[%clk 0:01:51.6]} 31. Qh1 {[%clk 0:01:27.3]} 31... Nh3+ {[%clk 0:01:46.8]} 32.
Kf1 {[%clk 0:01:28.4]} 32... Bg5 {[%clk 0:01:41.9]} 33. Ne4 {[%clk 0:01:19.8]}
33... Bxd2 {[%clk 0:01:42]} 34. Nxd2 {[%clk 0:01:19.4]} 34... fxe2+ {[%clk
0:01:42.2]} 35. Kxe2 {[%clk 0:01:21.3]} 0-1

[Event "*** MasterClass Titled Tuesday Blitz"]
[Site "Chess.com"]
[Date "2017.10.03"]
[Round "1"]
[White "Boryboy"]
[Black "severomorskij"]
[Result "0-1"]
[WhiteElo "2330"]
[BlackElo "2632"]
[TimeControl "180+2"]
[EndTime "13:05:56 PDT"]
[Termination "severomorskij won by resignation"]

1. d4 {[%clk 0:03:01.9]} 1... Nf6 {[%clk 0:02:57]} 2. Nf3 {[%clk 0:03:01.4]}
2... e6 {[%clk 0:02:55.7]} 3. g3 {[%clk 0:03:00.4]} 3... b5 {[%clk 0:02:55.3]}
4. Bg2 {[%clk 0:03:01.5]} 4... Bb7 {[%clk 0:02:56.7]} 5. a4 {[%clk 0:03:01.5]}
5... b4 {[%clk 0:02:54.9]} 6. Bg5 {[%clk 0:03:01.5]} 6... c5 {[%clk 0:02:53.1]}
7. c3 {[%clk 0:03:02.2]} 7... Na6 {[%clk 0:02:50.6]} 8. O-O {[%clk 0:02:59]}
8... cxd4 {[%clk 0:02:42.7]} 9. cxd4 {[%clk 0:02:57.2]} 9... Be7 {[%clk
0:02:42.8]} 10. Nbd2 {[%clk 0:02:56.8]} 10... O-O {[%clk 0:02:42.7]} 11. Nb3
{[%clk 0:02:48.3]} 11... h6 {[%clk 0:02:38.9]} 12. Bxf6 {[%clk 0:02:42.5]} 12...
Bxf6 {[%clk 0:02:39.6]} 13. Qd3 {[%clk 0:02:39.8]} 13... d6 {[%clk 0:02:27.3]}
14. Rfc1 {[%clk 0:02:29.5]} 14... g6 {[%clk 0:02:15]} 15. Nfd2 {[%clk
0:02:28.9]} 15... d5 {[%clk 0:02:08.6]} 16. Nc5 {[%clk 0:02:24.5]} 16... Nxc5
{[%clk 0:02:08.7]} 17. Rxc5 {[%clk 0:02:26.4]} 17... a5 {[%clk 0:02:00.4]} 18.
Nb3 {[%clk 0:02:26.1]} 18... Ba6 {[%clk 0:01:55.9]} 19. Qd2 {[%clk 0:02:23.6]}
19... Bc4 {[%clk 0:01:55.6]} 20. Rxc4 {[%clk 0:02:10.9]} 20... dxc4 {[%clk
0:01:55.2]} 21. Bxa8 {[%clk 0:02:12.6]} 21... cxb3 {[%clk 0:01:49.8]} 22. Bf3
{[%clk 0:01:45.4]} 22... Qxd4 {[%clk 0:01:48.5]} 23. Rd1 {[%clk 0:01:46.3]}
23... Qxb2 {[%clk 0:01:11.8]} 24. Qxh6 {[%clk 0:01:33]} 24... Qc2 {[%clk
0:01:04.4]} 25. Rc1 {[%clk 0:01:25.7]} 25... Rc8 {[%clk 0:01:01.9]} 0-1